[Event "Nordstansblixten 2025"]
[Site "Nordstan, Göteborg, Sweden"]
[Date "2025.05.10"]
[Round "2.10"]
[White "Kadunic, Admir"]
[Black "Hammar, Arvid"]
[Result "1-0"]
[TimeControl "3 minutes + 2 seconds per move from move one"]
[WhiteFideId "1773542"]
[BlackFideId "1735977"]
[WhiteElo "2109"]
[BlackElo "1667"]

1. d4 {[%clk 00:03:01]} {[%emt 00:00:02]} Nf6 {[%clk 00:03:03]} {[%emt
00:00:01]} 2. Bg5 {[%clk 00:03:03]} {[%emt 00:00:02]} d5 {[%clk 00:03:03]} 3.
e3 {[%clk 00:03:04]} {[%emt 00:00:01]} Nc6 {[%emt 00:00:02]} 4. Bd3 {[%clk
00:03:05]} h6 {[%clk 00:03:04]} {[%emt 00:00:02]} 5. Bh4 {[%clk 00:03:06]} g5
{[%clk 00:03:04]} {[%emt 00:00:01]} 6. Bg3 {[%clk 00:03:08]} {[%emt 00:00:02]}
e6 {[%clk 00:03:02]} {[%emt 00:00:03]} 7. Nd2 {[%clk 00:03:07]} {[%emt
00:00:03]} Bd6 {[%clk 00:03:01]} {[%emt 00:00:03]} 8. Ne2 {[%clk 00:03:07]}
{[%emt 00:00:02]} Bxg3 {[%clk 00:02:59]} {[%emt 00:00:03]} 9. Nxg3 {[%clk
00:03:09]} {[%emt 00:00:02]} Bd7 {[%clk 00:02:55]} {[%emt 00:00:05]} 10. c3
{[%clk 00:03:09]} {[%emt 00:00:02]} Qe7 {[%clk 00:02:53]} {[%emt 00:00:03]} 11.
Qe2 {[%clk 00:03:09]} {[%emt 00:00:03]} O-O-O {[%clk 00:02:43]} {[%emt
00:00:11]} 12. e4 {[%clk 00:03:09]} {[%emt 00:00:04]} e5 {[%clk 00:02:38]}
{[%emt 00:00:06]} 13. dxe5 {[%clk 00:02:56]} {[%emt 00:00:16]} Nxe5 {[%clk
00:02:33]} {[%emt 00:00:07]} 14. Bc2 {[%clk 00:02:46]} {[%emt 00:00:12]} dxe4
{[%clk 00:02:21]} {[%emt 00:00:13]} 15. Ngxe4 {[%clk 00:02:46]} {[%emt
00:00:03]} Rhe8 {[%clk 00:02:13]} {[%emt 00:00:09]} 16. O-O {[%clk 00:02:43]}
{[%emt 00:00:06]} Bc6 {[%clk 00:02:11]} {[%emt 00:00:04]} 17. f3 {[%clk
00:02:24]} {[%emt 00:00:21]} Bxe4 {[%clk 00:02:04]} {[%emt 00:00:08]} 18. Nxe4
{[%clk 00:02:24]} {[%emt 00:00:02]} Nxe4 {[%clk 00:02:01]} {[%emt 00:00:05]} 19.
Qxe4 {[%clk 00:02:16]} {[%emt 00:00:10]} Qc5+ {[%clk 00:01:56]} {[%emt
00:00:07]} 20. Kh1 {[%clk 00:02:14]} {[%emt 00:00:05]} Nc4 {[%clk 00:01:49]}
{[%emt 00:00:08]} 21. Qg4+ {[%clk 00:02:13]} {[%emt 00:00:03]} f5 {[%clk
00:01:48]} {[%emt 00:00:07]} 22. Qxf5+ {[%clk 00:02:11]} {[%emt 00:00:05]} Qxf5
{[%clk 00:01:44]} {[%emt 00:00:06]} 23. Bxf5+ {[%clk 00:02:12]} Kb8 {[%clk
00:01:41]} {[%emt 00:00:05]} 24. Rf2 {[%clk 00:01:53]} {[%emt 00:00:22]} Re5
{[%clk 00:01:32]} {[%emt 00:00:10]} 25. Be4 {[%clk 00:01:45]} {[%emt 00:00:10]}
Nd6 {[%clk 00:01:25]} {[%emt 00:00:08]} 26. Re2 {[%clk 00:01:40]} {[%emt
00:00:08]} c6 {[%clk 00:01:22]} {[%emt 00:00:05]} 27. Rae1 {[%clk 00:01:41]}
{[%emt 00:00:01]} Nxe4 {[%clk 00:01:18]} {[%emt 00:00:06]} 28. fxe4 {[%clk
00:01:39]} {[%emt 00:00:05]} Kc7 {[%clk 00:01:14]} {[%emt 00:00:06]} 29. Kg1
{[%clk 00:01:39]} {[%emt 00:00:02]} b5 {[%clk 00:01:13]} {[%emt 00:00:02]} 30.
Kf2 {[%clk 00:01:36]} {[%emt 00:00:05]} c5 {[%clk 00:01:12]} {[%emt 00:00:03]}
31. Ke3 {[%clk 00:01:34]} {[%emt 00:00:05]} c4 {[%clk 00:01:11]} {[%emt
00:00:02]} 32. Rd2 {[%clk 00:01:34]} {[%emt 00:00:02]} Rde8 {[%clk 00:01:11]}
{[%emt 00:00:03]} 33. Rd4 {[%clk 00:01:35]} Kc6 {[%clk 00:01:06]} {[%emt
00:00:07]} 34. Rf1 {[%clk 00:01:35]} {[%emt 00:00:02]} R8e6 {[%clk 00:01:06]}
35. Rf8 {[%clk 00:01:30]} {[%emt 00:00:07]} a5 {[%clk 00:00:59]} {[%emt
00:00:09]} 36. a4 {[%clk 00:01:28]} {[%emt 00:00:05]} Rc5 {[%clk 00:00:42]}
{[%emt 00:00:18]} 37. Rc8+ {[%clk 00:01:25]} {[%emt 00:00:05]} Kb6 {[%clk
00:00:42]} {[%emt 00:00:02]} 38. Rb8+ {[%clk 00:01:17]} {[%emt 00:00:10]} Kc6
{[%clk 00:00:40]} {[%emt 00:00:03]} 39. axb5+ {[%clk 00:01:13]} {[%emt
00:00:07]} Rxb5 {[%clk 00:00:41]} {[%emt 00:00:02]} 40. Rxc4+ {[%clk 00:01:13]}
{[%emt 00:00:02]} Rc5 {[%clk 00:00:37]} {[%emt 00:00:05]} 41. Rc8+ {[%clk
00:01:13]} {[%emt 00:00:03]} Kb5 {[%clk 00:00:35]} {[%emt 00:00:03]} 42. R8xc5+
{[%clk 00:01:12]} {[%emt 00:00:03]} Kb6 {[%clk 00:00:35]} {[%emt 00:00:02]} 43.
Kd4 {[%clk 00:01:08]} {[%emt 00:00:06]} h5 {[%clk 00:00:32]} {[%emt 00:00:05]}
44. e5 {[%clk 00:01:07]} {[%emt 00:00:03]} g4 {[%clk 00:00:32]} {[%emt
00:00:02]} 45. Rd5 {[%clk 00:01:08]} h4 {[%clk 00:00:31]} {[%emt 00:00:03]} 46.
Rd7 {[%emt 00:00:02]} Rd6+ {[%clk 00:00:32]} 1-0

[Event "Nordstansblixten 2025"]
[Site "Nordstan, Göteborg, Sweden"]
[Date "2025.05.10"]
[Round "3.1"]
[White "Andersson, Stig"]
[Black "Wellevit, Tomas"]
[Result "1-0"]
[TimeControl "3 minutes + 2 seconds per move from move one"]
[WhiteFideId "1731971"]
[BlackFideId "1731963"]
[WhiteElo "1837"]
[BlackElo "2131"]

1. e4 {[%clk 00:03:01]} {[%emt 00:00:02]} c5 {[%clk 00:03:04]} {[%emt
00:00:02]} 2. Nc3 {[%clk 00:03:00]} {[%emt 00:00:03]} Nc6 {[%clk 00:03:05]} 3.
f4 {[%clk 00:02:50]} {[%emt 00:00:11]} e6 {[%clk 00:03:05]} {[%emt 00:00:02]} 4.
Nf3 {[%clk 00:02:50]} {[%emt 00:00:02]} Nf6 {[%clk 00:03:03]} {[%emt 00:00:05]}
5. Be2 {[%clk 00:02:49]} {[%emt 00:00:03]} Nd4 {[%clk 00:02:59]} {[%emt
00:00:05]} 6. d3 {[%clk 00:02:43]} {[%emt 00:00:09]} Be7 {[%clk 00:02:53]}
{[%emt 00:00:08]} 7. Nxd4 {[%clk 00:02:31]} {[%emt 00:00:14]} cxd4 {[%clk
00:02:55]} 8. Nb1 {[%clk 00:02:31]} {[%emt 00:00:01]} b6 {[%clk 00:02:46]}
{[%emt 00:00:11]} 9. O-O {[%clk 00:02:30]} {[%emt 00:00:03]} Bb7 {[%clk
00:02:48]} 10. Bf3 {[%clk 00:02:28]} {[%emt 00:00:03]} O-O {[%clk 00:02:47]}
{[%emt 00:00:03]} 11. Nd2 {[%clk 00:02:24]} {[%emt 00:00:06]} b5 {[%clk
00:02:44]} {[%emt 00:00:06]} 12. Nb3 {[%clk 00:02:24]} {[%emt 00:00:02]} Qb6
{[%clk 00:02:45]} 13. Kh1 {[%clk 00:02:19]} {[%emt 00:00:07]} a5 {[%clk
00:02:47]} 14. e5 {[%clk 00:02:12]} {[%emt 00:00:09]} Nd5 {[%clk 00:02:37]}
{[%emt 00:00:11]} 15. Bd2 {[%clk 00:02:00]} {[%emt 00:00:14]} a4 {[%clk
00:02:37]} {[%emt 00:00:02]} 16. Nc1 {[%clk 00:02:00]} {[%emt 00:00:02]} f6
{[%clk 00:02:34]} {[%emt 00:00:05]} 17. Ne2 {[%clk 00:01:26]} {[%emt 00:00:36]}
fxe5 {[%clk 00:02:33]} {[%emt 00:00:04]} 18. fxe5 {[%clk 00:01:25]} {[%emt
00:00:02]} Bc5 {[%clk 00:02:17]} {[%emt 00:00:19]} 19. Qe1 {[%clk 00:00:48]}
{[%emt 00:00:39]} Rf5 {[%clk 00:02:18]} 20. Ng3 {[%clk 00:00:43]} {[%emt
00:00:07]} Rf7 {[%clk 00:02:01]} {[%emt 00:00:19]} 21. Be4 {[%clk 00:00:42]}
{[%emt 00:00:03]} Raf8 {[%clk 00:01:48]} {[%emt 00:00:15]} 22. Rxf7 {[%clk
00:00:42]} {[%emt 00:00:02]} Rxf7 {[%clk 00:01:49]} 23. Qe2 {[%clk 00:00:31]}
{[%emt 00:00:13]} Ne3 {[%clk 00:01:45]} {[%emt 00:00:07]} 24. Qh5 {[%clk
00:00:18]} {[%emt 00:00:15]} Bxe4 {[%clk 00:01:44]} {[%emt 00:00:03]} 25. Nxe4
{[%clk 00:00:13]} {[%emt 00:00:08]} Qc6 {[%clk 00:01:41]} {[%emt 00:00:04]} 26.
h3 {[%clk 00:00:12]} {[%emt 00:00:04]} Nf5 {[%clk 00:01:36]} {[%emt 00:00:07]}
27. Kh2 {[%clk 00:00:07]} {[%emt 00:00:07]} Qd5 {[%clk 00:01:27]} {[%emt
00:00:11]} 28. Ng5 {[%clk 00:00:07]} {[%emt 00:00:02]} Qxe5+ {[%clk 00:01:25]}
{[%emt 00:01:08]} 29. Kg1 {[%clk 00:00:08]} {[%emt 00:00:27]} g6 {[%clk
00:01:25]} {[%emt 00:00:02]} 30. Nxf7 {[%clk 00:00:08]} {[%emt 00:00:02]} gxh5
{[%clk 00:01:26]} 31. Nxe5 {[%emt 00:00:02]} d6 {[%clk 00:01:20]} {[%emt
00:00:08]} 32. Nd7 {[%clk 00:00:10]} Ba7 {[%clk 00:01:16]} {[%emt 00:00:06]} 33.
Nf6+ {[%clk 00:00:11]} Kf7 {[%clk 00:01:17]} 34. Nxh5 {[%clk 00:00:11]} {[%emt
00:00:02]} e5 {[%clk 00:01:17]} {[%emt 00:00:02]} 35. Kh2 {[%clk 00:00:09]}
{[%emt 00:00:04]} Ke6 {[%clk 00:01:16]} {[%emt 00:00:03]} 36. Ng3 {[%clk
00:00:10]} Nh4 {[%clk 00:01:16]} {[%emt 00:00:02]} 37. Ne4 {[%clk 00:00:12]} d5
{[%clk 00:01:15]} {[%emt 00:00:03]} 38. Ng5+ {[%clk 00:00:13]} Kf5 {[%clk
00:01:15]} {[%emt 00:00:01]} 39. Nxh7 {[%clk 00:00:13]} {[%emt 00:00:02]} e4
{[%clk 00:01:11]} {[%emt 00:00:06]} 40. Kg3 {[%clk 00:00:08]} {[%emt 00:00:07]}
Ng6 {[%clk 00:01:09]} {[%emt 00:00:04]} 41. Ba5 {[%clk 00:00:07]} {[%emt
00:00:04]} Bb8+ {[%clk 00:01:10]} 42. Kf2 {[%clk 00:00:06]} {[%emt 00:00:02]}
e3+ {[%clk 00:01:10]} {[%emt 00:00:02]} 43. Ke2 {[%clk 00:00:08]} {[%emt
00:00:01]} Nf4+ {[%clk 00:01:11]} 44. Kf3 {[%clk 00:00:08]} Bd6 {[%clk
00:01:07]} {[%emt 00:00:06]} 45. h4 {[%clk 00:00:09]} {[%emt 00:00:02]} Ng6
{[%clk 00:01:01]} {[%emt 00:00:07]} 46. g4+ {[%clk 00:00:10]} Ke6 {[%clk
00:01:02]} {[%emt 00:00:01]} 47. Ng5+ {[%clk 00:00:11]} {[%emt 00:00:02]} Kf6
{[%clk 00:01:03]} 48. Nh7+ {[%clk 00:00:10]} {[%emt 00:00:02]} Kg7 {[%clk
00:01:03]} {[%emt 00:00:02]} 49. Ng5 {[%clk 00:00:09]} {[%emt 00:00:03]} Ne5+
{[%clk 00:01:04]} {[%emt 00:00:01]} 50. Ke2 {[%clk 00:00:08]} {[%emt 00:00:03]}
Kf6 {[%clk 00:01:03]} {[%emt 00:00:03]} 51. Nf3 {[%clk 00:00:08]} {[%emt
00:00:02]} Nxg4 {[%clk 00:01:04]} {[%emt 00:00:01]} 52. Nxd4 {[%clk 00:00:08]}
{[%emt 00:00:02]} Be5 {[%clk 00:01:05]} {[%emt 00:00:01]} 53. Nxb5 {[%clk
00:00:09]} {[%emt 00:00:02]} d4 {[%clk 00:01:05]} {[%emt 00:00:02]} 54. Rf1+
{[%clk 00:00:10]} {[%emt 00:00:02]} Kg6 {[%clk 00:01:06]} 55. Bb6 {[%clk
00:00:09]} {[%emt 00:00:03]} Kh5 {[%clk 00:00:53]} {[%emt 00:00:14]} 56. Nxd4
{[%clk 00:00:09]} {[%emt 00:00:02]} Nf2 {[%clk 00:00:48]} {[%emt 00:00:07]} 57.
Nf3 {[%clk 00:00:10]} {[%emt 00:00:01]} Bf4 {[%clk 00:00:46]} {[%emt 00:00:04]}
58. Bxe3 {[%clk 00:00:10]} {[%emt 00:00:02]} Bxe3 {[%clk 00:00:47]} {[%emt
00:00:02]} 59. Kxe3 {[%clk 00:00:11]} Ng4+ {[%clk 00:00:48]} 60. Kf4 {[%clk
00:00:12]} {[%emt 00:00:01]} Nf6 {[%clk 00:00:47]} {[%emt 00:00:02]} 61. Kg3
{[%clk 00:00:11]} {[%emt 00:00:03]} Nd5 {[%clk 00:00:48]} {[%emt 00:00:02]} 62.
Ne5 {[%clk 00:00:12]} Ne3 {[%clk 00:00:49]} 63. Kh3 {[%clk 00:00:13]} {[%emt
00:00:01]} Nxc2 {[%clk 00:00:48]} {[%emt 00:00:02]} 64. Rf5+ {[%clk 00:00:14]}
Kh6 {[%clk 00:00:50]} 65. Rf6+ {[%clk 00:00:14]} {[%emt 00:00:02]} Kg7 {[%clk
00:00:50]} {[%emt 00:00:01]} 66. Rf7+ {[%clk 00:00:15]} {[%emt 00:00:01]} Kg8
{[%clk 00:00:52]} 67. Ra7 {[%clk 00:00:15]} {[%emt 00:00:02]} Nd4 {[%clk
00:00:52]} {[%emt 00:00:01]} 68. b3 {[%clk 00:00:16]} {[%emt 00:00:01]} axb3
{[%clk 00:00:53]} 69. axb3 {[%clk 00:00:18]} Nxb3 {[%clk 00:00:54]} 70. Kg4
{[%clk 00:00:19]} Nd4 {[%clk 00:00:54]} {[%emt 00:00:02]} 71. Kg5 {[%clk
00:00:19]} {[%emt 00:00:01]} Ne6+ {[%clk 00:00:55]} 72. Kf6 {[%clk 00:00:20]}
Nf4 {[%clk 00:00:57]} {[%emt 00:00:01]} 73. Ng6 {[%clk 00:00:19]} {[%emt
00:00:02]} Nxd3 {[%clk 00:00:56]} {[%emt 00:00:03]} 74. Ne7+ {[%clk 00:00:19]}
{[%emt 00:00:03]} Kh7 {[%clk 00:00:57]} 75. Nf5+ {[%clk 00:00:19]} {[%emt
00:00:02]} Kh8 {[%clk 00:00:57]} {[%emt 00:00:02]} 76. Kg6 {[%clk 00:00:20]}
{[%emt 00:00:01]} Ne5+ {[%clk 00:00:56]} {[%emt 00:00:03]} 77. Kh6 {[%clk
00:00:20]} {[%emt 00:00:02]} Kg8 {[%clk 00:00:55]} {[%emt 00:00:03]} 78. Nd6
{[%clk 00:00:18]} {[%emt 00:00:04]} Ng4+ {[%clk 00:00:53]} {[%emt 00:00:04]} 79.
Kg5 {[%clk 00:00:19]} {[%emt 00:00:01]} Ne3 {[%clk 00:00:52]} {[%emt 00:00:03]}
80. Kg6 {[%clk 00:00:18]} {[%emt 00:00:03]} Kf8 {[%clk 00:00:51]} {[%emt
00:00:03]} 81. h5 {[%clk 00:00:18]} {[%emt 00:00:02]} Nd5 {[%clk 00:00:52]}
{[%emt 00:00:02]} 82. h6 {[%clk 00:00:16]} {[%emt 00:00:03]} Ne7+ {[%clk
00:00:53]} 83. Rxe7 {[%clk 00:00:16]} {[%emt 00:00:03]} Kxe7 {[%clk 00:00:54]}
84. Nf5+ {[%clk 00:00:17]} {[%emt 00:00:01]} Ke6 {[%clk 00:00:55]} 85. h7
{[%clk 00:00:17]} {[%emt 00:00:01]} 1-0

[Event "Nordstansblixten 2025"]
[Site "Nordstan, Göteborg, Sweden"]
[Date "2025.05.10"]
[Round "3.2"]
[White "Olivius, Sten"]
[Black "Bergdahl, Daniel"]
[Result "1-0"]
[TimeControl "3 minutes + 2 seconds per move from move one"]
[WhiteFideId "1788728"]
[BlackFideId "1780921"]
[WhiteElo "1874"]
[BlackElo "1855"]

1. b3 {[%clk 00:03:00]} {[%emt 00:00:04]} Nf6 {[%clk 00:03:03]} 2. Bb2 {[%clk
00:03:01]} g6 {[%clk 00:03:04]} {[%emt 00:00:01]} 3. Nf3 {[%clk 00:02:59]}
{[%emt 00:00:04]} Bg7 {[%clk 00:03:05]} 4. d3 {[%clk 00:02:59]} {[%emt
00:00:02]} O-O {[%clk 00:03:04]} {[%emt 00:00:03]} 5. e4 {[%clk 00:02:58]}
{[%emt 00:00:03]} d6 {[%clk 00:03:05]} {[%emt 00:00:02]} 6. Be2 {[%clk
00:02:58]} Nbd7 {[%clk 00:03:02]} {[%emt 00:00:05]} 7. O-O {[%clk 00:02:53]}
{[%emt 00:00:07]} e5 {[%clk 00:03:03]} {[%emt 00:00:01]} 8. Na3 {[%clk
00:02:44]} {[%emt 00:00:11]} c6 {[%clk 00:03:02]} {[%emt 00:00:02]} 9. Nc4
{[%clk 00:02:42]} {[%emt 00:00:04]} Nb6 {[%clk 00:03:03]} {[%emt 00:00:01]} 10.
Nxb6 {[%clk 00:02:36]} {[%emt 00:00:09]} axb6 {[%clk 00:02:58]} {[%emt
00:00:07]} 11. Re1 {[%clk 00:02:33]} {[%emt 00:00:05]} Nh5 {[%clk 00:02:54]}
{[%emt 00:00:05]} 12. Qd2 {[%clk 00:02:29]} {[%emt 00:00:07]} Nf4 {[%clk
00:02:51]} {[%emt 00:00:05]} 13. Bf1 {[%clk 00:02:27]} {[%emt 00:00:03]} Bh6
{[%clk 00:02:50]} {[%emt 00:00:03]} 14. Kh1 {[%clk 00:02:13]} {[%emt 00:00:17]}
Bg4 {[%clk 00:02:32]} {[%emt 00:00:20]} 15. Ng1 {[%clk 00:02:00]} {[%emt
00:00:15]} Nh3 {[%clk 00:02:27]} {[%emt 00:00:07]} 16. Re3 {[%clk 00:01:33]}
{[%emt 00:00:29]} Bxe3 {[%clk 00:02:16]} {[%emt 00:00:13]} 17. Qxe3 {[%clk
00:01:32]} {[%emt 00:00:03]} Nf4 {[%clk 00:02:04]} {[%emt 00:00:14]} 18. h3
{[%emt 00:00:06]} Bd7 {[%clk 00:01:47]} {[%emt 00:00:17]} 19. g3 {[%clk
00:01:25]} {[%emt 00:00:07]} Ne6 {[%clk 00:01:35]} {[%emt 00:00:13]} 20. f4
{[%clk 00:01:24]} {[%emt 00:00:04]} exf4 {[%clk 00:01:20]} {[%emt 00:00:17]} 21.
gxf4 {[%clk 00:01:24]} Qh4 {[%clk 00:01:14]} {[%emt 00:00:08]} 22. f5 {[%clk
00:01:16]} {[%emt 00:00:11]} Ng7 {[%clk 00:00:18]} {[%emt 00:00:57]} 23. Qd4
{[%clk 00:00:54]} {[%emt 00:00:25]} f6 {[%clk 00:00:13]} {[%emt 00:00:07]} 24.
Qxd6 {[%clk 00:00:51]} {[%emt 00:00:04]} Rad8 {[%clk 00:00:15]} 25. Qh2 {[%clk
00:00:33]} {[%emt 00:00:20]} Nh5 {[%clk 00:00:15]} {[%emt 00:00:02]} 26. Ne2
{[%clk 00:00:30]} {[%emt 00:00:05]} gxf5 {[%clk 00:00:12]} {[%emt 00:00:05]} 27.
exf5 {[%clk 00:00:27]} {[%emt 00:00:05]} Bxf5 {[%clk 00:00:10]} {[%emt
00:00:04]} 28. Bg2 {[%clk 00:00:26]} {[%emt 00:00:03]} Kf7 {[%clk 00:00:06]}
{[%emt 00:00:06]} 29. Rf1 {[%clk 00:00:22]} {[%emt 00:00:06]} Be6 {[%clk
00:00:06]} {[%emt 00:00:01]} 30. Bf3 {[%emt 00:00:14]} Ng7 {[%clk 00:00:03]}
{[%emt 00:00:03]} 31. Nf4 {[%clk 00:00:09]} {[%emt 00:00:05]} Nf5 {[%clk
00:00:04]} 32. Nxe6 {[%clk 00:00:09]} {[%emt 00:00:02]} Ng3+ {[%clk 00:00:06]}
1-0

[Event "Nordstansblixten 2025"]
[Site "Nordstan, Göteborg, Sweden"]
[Date "2025.05.10"]
[Round "3.3"]
[White "Madevan Vaishnavi, Yaashvan"]
[Black "Mohammed, Safian Haj"]
[Result "1-0"]
[TimeControl "3 minutes + 2 seconds per move from move one"]
[WhiteFideId "1772180"]
[BlackFideId "1729276"]
[WhiteElo "1717"]
[BlackElo "1874"]

1. e4 {[%clk 00:03:02]} {[%emt 00:00:01]} c5 {[%emt 00:00:03]} 2. c3 {[%clk
00:03:02]} d5 {[%clk 00:03:04]} 3. exd5 {[%clk 00:03:03]} {[%emt 00:00:01]}
Qxd5 {[%clk 00:03:04]} 4. d4 {[%emt 00:00:03]} Nf6 {[%clk 00:03:04]} 5. Nf3
{[%clk 00:03:05]} cxd4 {[%clk 00:03:04]} {[%emt 00:00:02]} 6. cxd4 {[%clk
00:03:06]} {[%emt 00:00:01]} Nc6 {[%clk 00:03:05]} 7. Nc3 {[%clk 00:03:07]} Qd8
{[%clk 00:03:06]} 8. Be3 {[%clk 00:03:04]} {[%emt 00:00:05]} e6 {[%clk
00:03:07]} {[%emt 00:00:01]} 9. Bc4 {[%clk 00:03:06]} {[%emt 00:00:01]} Be7
{[%clk 00:03:00]} {[%emt 00:00:09]} 10. O-O {[%clk 00:03:06]} {[%emt 00:00:02]}
O-O {[%clk 00:03:00]} {[%emt 00:00:01]} 11. Qe2 {[%clk 00:02:55]} {[%emt
00:00:13]} a6 {[%clk 00:03:01]} {[%emt 00:00:02]} 12. a4 {[%clk 00:02:55]} Bd7
{[%clk 00:02:47]} {[%emt 00:00:16]} 13. Rad1 {[%clk 00:02:54]} {[%emt
00:00:04]} Rc8 {[%clk 00:02:45]} {[%emt 00:00:03]} 14. Ba2 {[%clk 00:02:48]}
{[%emt 00:00:08]} Qa5 {[%clk 00:02:40]} {[%emt 00:00:07]} 15. Bb1 {[%clk
00:02:29]} {[%emt 00:00:21]} h6 {[%clk 00:02:26]} {[%emt 00:00:16]} 16. Nd2
{[%clk 00:02:09]} {[%emt 00:00:22]} Qh5 {[%clk 00:02:18]} {[%emt 00:00:10]} 17.
Qxh5 {[%clk 00:01:39]} {[%emt 00:00:32]} Nxh5 {[%clk 00:02:19]} 18. Nde4 {[%clk
00:01:37]} {[%emt 00:00:04]} Nf6 {[%clk 00:02:14]} {[%emt 00:00:06]} 19. Nc5
{[%clk 00:01:33]} {[%emt 00:00:07]} Be8 {[%clk 00:02:11]} {[%emt 00:00:05]} 20.
d5 {[%clk 00:01:18]} {[%emt 00:00:17]} exd5 {[%clk 00:02:10]} {[%emt 00:00:03]}
21. Nxd5 {[%clk 00:01:18]} {[%emt 00:00:02]} Nxd5 {[%clk 00:02:11]} {[%emt
00:00:01]} 22. Rxd5 {[%clk 00:01:18]} {[%emt 00:00:02]} Nb4 {[%clk 00:02:11]}
{[%emt 00:00:02]} 23. Re5 {[%clk 00:01:03]} {[%emt 00:00:17]} Bd6 {[%clk
00:02:09]} {[%emt 00:00:04]} 24. Re4 {[%clk 00:01:02]} {[%emt 00:00:02]} Bc6
{[%clk 00:02:04]} {[%emt 00:00:07]} 25. Rxb4 {[%clk 00:00:56]} {[%emt
00:00:09]} a5 {[%clk 00:01:48]} {[%emt 00:00:18]} 26. Rc4 {[%clk 00:00:55]}
{[%emt 00:00:03]} Bd5 {[%clk 00:01:48]} {[%emt 00:00:02]} 27. Rcc1 {[%clk
00:00:47]} {[%emt 00:00:10]} Be5 {[%clk 00:01:39]} {[%emt 00:00:11]} 28. Nd3
{[%clk 00:00:44]} {[%emt 00:00:04]} Bf6 {[%clk 00:01:39]} {[%emt 00:00:03]} 29.
h3 {[%clk 00:00:40]} {[%emt 00:00:06]} Rcd8 {[%clk 00:01:38]} {[%emt 00:00:02]}
30. Rc7 {[%clk 00:00:25]} {[%emt 00:00:17]} Be4 {[%clk 00:01:31]} {[%emt
00:00:09]} 31. Nc5 {[%clk 00:00:20]} {[%emt 00:00:08]} Bd5 {[%clk 00:01:28]}
{[%emt 00:00:05]} 32. Nxb7 {[%clk 00:00:18]} {[%emt 00:00:03]} Be5 {[%clk
00:01:20]} {[%emt 00:00:10]} 33. Nxd8 {[%clk 00:00:17]} {[%emt 00:00:04]} Bxc7
{[%clk 00:01:21]} {[%emt 00:00:01]} 34. Nxf7 {[%clk 00:00:15]} {[%emt
00:00:04]} Bxf7 {[%clk 00:01:19]} {[%emt 00:00:04]} 35. Be4 {[%emt 00:00:10]}
Bb3 {[%clk 00:01:19]} 36. Bc6 {[%clk 00:00:09]} {[%emt 00:00:02]} Rd8 {[%clk
00:01:17]} {[%emt 00:00:04]} 37. Bc5 {[%clk 00:00:07]} {[%emt 00:00:04]} Kf7
{[%clk 00:01:16]} {[%emt 00:00:02]} 38. Re1 {[%clk 00:00:08]} {[%emt 00:00:02]}
Kf6 {[%clk 00:01:16]} {[%emt 00:00:02]} 39. Be7+ {[%clk 00:00:08]} {[%emt
00:00:02]} Kg6 {[%clk 00:01:14]} {[%emt 00:00:03]} 40. Be4+ {[%clk 00:00:07]}
{[%emt 00:00:03]} Kf7 {[%clk 00:01:14]} {[%emt 00:00:02]} 41. Bxd8 {[%clk
00:00:07]} {[%emt 00:00:02]} Bxd8 {[%clk 00:01:15]} 42. Bc6 {[%clk 00:00:07]}
{[%emt 00:00:02]} Bf6 {[%clk 00:01:13]} {[%emt 00:00:04]} 43. Re2 {[%clk
00:00:08]} {[%emt 00:00:02]} Kg6 {[%clk 00:01:13]} {[%emt 00:00:03]} 44. g4
{[%clk 00:00:08]} {[%emt 00:00:02]} h5 {[%clk 00:01:14]} {[%emt 00:00:01]} 45.
Be8+ {[%clk 00:00:08]} {[%emt 00:00:03]} Kh6 {[%clk 00:01:14]} 46. Kg2 {[%clk
00:00:05]} {[%emt 00:00:05]} hxg4 {[%clk 00:01:15]} 47. hxg4 {[%clk 00:00:06]}
Bd1 {[%clk 00:01:14]} {[%emt 00:00:03]} 48. Re4 {[%clk 00:00:04]} {[%emt
00:00:04]} Bb3 {[%clk 00:01:13]} {[%emt 00:00:03]} 49. Kg3 {[%clk 00:00:04]}
{[%emt 00:00:03]} Bd5 {[%clk 00:01:13]} {[%emt 00:00:02]} 50. Re2 {[%clk
00:00:03]} {[%emt 00:00:02]} Bc4 {[%clk 00:01:13]} {[%emt 00:00:02]} 51. Rc2
{[%clk 00:00:03]} {[%emt 00:00:02]} Bb3 {[%emt 00:00:03]} 52. Rc8 Bd5 {[%clk
00:01:12]} {[%emt 00:00:01]} 53. Rc5 {[%clk 00:00:05]} {[%emt 00:00:02]} Be5+
{[%clk 00:01:11]} {[%emt 00:00:03]} 54. Kh3 {[%clk 00:00:05]} {[%emt 00:00:02]}
Bd6 {[%clk 00:01:09]} {[%emt 00:00:05]} 55. Rxd5 {[%clk 00:00:07]} {[%emt
00:00:01]} 1-0